[Event "SAIF POWERTEC 45th BAN Ch 2019"]
[Site "Dhaka"]
[Date "2019.11.08"]
[Round "7.9"]
[White "Ahmed, Sheikh Nasir"]
[Black "Hossain, Delwar"]
[Result "1-0"]
[ECO "B07"]
[WhiteElo "2185"]
[BlackElo "2080"]
[Annotator "ChessBase"]
[PlyCount "185"]
[EventDate "2019.11.02"]
[EventType "swiss"]
[EventCountry "BAN"]
[SourceTitle "playchess.com"]
[Source "ChessBase"]
[SourceQuality "1"]
[TimeControl "40/5400+30:1800+30"]

1. e4 {[%emt 1:30:30]} d6 {[%emt 0:07:31]} 2. d4 {[%emt 0:00:00]} Nf6 {[%emt 0:00:06]} 3. Nc3 {[%emt 0:00:00]} g6 {[%emt 0:00:19]} 4. Bg5 {[%emt 0:00:00]} Bg7 {[%emt 0:00:14]} 5. f4 {[%emt 0:00:00]} c6 {[%emt 0:02:57]} 6. Qd2 {[%emt 0:00:00]} h6 {[%emt 0:01:45]} 7. Bh4 {[%emt 0:00:00]} Qa5 {[%emt 0:02:05]} 8. h3 {[%emt 0:00:00]} Nbd7 {[%emt 0:03:29]} 9. Nf3 {[%emt 0:00:00]} a6 {[%emt 0:03:09]} 10. Bd3 {[%emt 0:00:00]} e5 {[%emt 0:09:08]} 11. O-O {[%emt 0:00:00]} exd4 {[%emt 0:11:08]} 12. Nxd4 {[%emt 0:00:00]} O-O {[%emt 0:00:49]} 13. Kh1 {[%emt 0:00:00]} Nh5 {[%emt 0:06:52]} 14. Nf3 {[%emt 0:00:00]} Re8 {[%emt 0:01:56]} 15. Rae1 {[%emt 0:00:00]} Qb4 {[%emt 0:05:30]} 16. g4 {[%emt 0:00:00]} Nhf6 {[%emt 0:00:51]} 17. e5 {[%emt 0:00:00]} dxe5 {[%emt 0:02:29]} 18. fxe5 {[%emt 0:00:00]} Nh7 {[%emt 0:06:53]} 19. e6 {[%emt 0:00:00]} Rxe6 {[%emt 0:04:17]} 20. Rxe6 {[%emt 0:00:00]} fxe6 {[%emt 0:00:13]} 21. Nd5 {[%emt 0:00:00]} Qxd2 {[%emt 0:08:06]} 22. Ne7+ {[%emt 0:00:00]} Kf8 {[%emt 0:01:37]} 23. Nxd2+ {[%emt 0:00:00]} Bf6 {[%emt 0:02:11]} 24. Nxg6+ {[%emt 0:00:27]} Kg7 {[%emt 0:00:19]} 25. Bxf6+ {[%emt 0:01:59]} Nhxf6 {[%emt 0:00:26]} 26. Nc4 {[%emt 0:02:56]} b5 {[%emt 0:02:41]} 27. Nd6 {[%emt 0:02:06]} Nc5 {[%emt 0:04:05]} 28. Ne5 {[%emt 0:00:31]} Nb7 {[%emt 0:01:21]} 29. Ne4 {[%emt 0:00:47]} Nxe4 {[%emt 0:02:08]} 30. Bxe4 {[%emt 0:01:37]} Nd6 {[%emt 0:01:45]} 31. Bxc6 {[%emt 0:00:02]} Ra7 {[%emt 0:00:29]} 32. c3 {[%emt 0:01:09]} Rc7 {[%emt 0:01:09]} 33. Kg1 {[%emt 0:00:50]} Nc4 {[%emt 0:01:05]} 34. Nxc4 {[%emt 0:00:20]} bxc4 {[%emt 0:00:17]} 35. Be4 {[%emt 0:00:46]} Bb7 {[%emt 0:00:55]} 36. Re1 {[%emt 0:01:24]} Bd5 {[%emt 0:00:33]} 37. Bxd5 {[%emt 0:00:41]} exd5 {[%emt 0:01:07]} 38. Kf2 {[%emt 0:00:17]} Kf6 {[%emt 0:01:05]} 39. Re2 {[%emt 0:01:17]} Rd7 {[%emt 0:02:10]} 40. Ke3 {[%emt 0:00:00]} Ke5 {[%emt 0:00:00]} 41. Rf2 {[%emt 0:01:57]} Re7 {[%emt 0:02:16]} 42. Kd2 {[%emt 0:00:50]} Rb7 {[%emt 0:01:17]} 43. Kc2 {[%emt 0:00:42]} Rb6 {[%emt 0:00:17]} 44. b3 {[%emt 0:02:40]} Rc6 {[%emt 0:00:43]} 45. b4 {[%emt 0:02:38]} Ke4 {[%emt 0:01:02]} 46. a4 {[%emt 0:00:54]} Rg6 {[%emt 0:01:50]} 47. Rf5 {[%emt 0:01:58]} d4 {[%emt 0:00:25]} 48. cxd4 {[%emt 0:00:30]} Kxd4 {[%emt 0:00:32]} 49. Rf4+ {[%emt 0:00:21]} Kd5 {[%emt 0:00:42]} 50. Kc3 {[%emt 0:00:06]} Re6 {[%emt 0:00:58]} 51. Rd4+ {[%emt 0:01:29]} Kc6 {[%emt 0:00:09]} 52. Rxc4+ {[%emt 0:02:26]} Kb6 {[%emt 0:00:25]} 53. Rd4 {[%emt 0:01:36]} Re3+ {[%emt 0:00:50]} 54. Rd3 {[%emt 0:00:03]} Re6 {[%emt 0:00:20]} 55. Rg3 {[%emt 0:00:53]} a5 {[%emt 0:01:10]} 56. Rd3 {[%emt 0:05:09]} axb4+ {[%emt 0:01:08]} 57. Kxb4 {[%emt 0:00:02]} Re4+ {[%emt 0:00:50]} 58. Kb3 {[%emt 0:00:01]} Kc5 {[%emt 0:01:11]} 59. Rf3 {[%emt 0:00:50]} Rb4+ {[%emt 0:01:12]} 60. Ka3 {[%emt 0:00:17]} Re4 {[%emt 0:01:08]} 61. Rf5+ {[%emt 0:02:13]} Kc4 {[%emt 0:00:17]} 62. Rh5 {[%emt 0:00:12]} Re3+ {[%emt 0:01:39]} 63. Kb2 {[%emt 0:00:04]} Re2+ {[%emt 0:00:45]} 64. Kc1 {[%emt 0:00:23]} Kc3 {[%emt 0:01:21]} 65. Kd1 {[%emt 0:00:08]} Re6 {[%emt 0:00:25]} 66. a5 {[%emt 0:00:30]} Kd3 {[%emt 0:00:25]} 67. Rb5 {[%emt 0:02:15]} Rf6 {[%emt 0:02:00]} 68. Ke1 {[%emt 0:01:00]} Ra6 {[%emt 0:01:05]} 69. Kf2 {[%emt 0:00:22]} Ke4 {[%emt 0:00:58]} 70. Kg3 {[%emt 0:00:13]} Ra8 {[%emt 0:01:04]} 71. Kh4 {[%emt 0:00:22]} Kf4 {[%emt 0:01:03]} 72. Rf5+ {[%emt 0:00:57]} Ke4 {[%emt 0:00:21]} 73. Rf6 {[%emt 0:00:38]} Rxa5 {[%emt 0:00:27]} 74. Rxh6 {[%emt 0:00:04]} Ra8 {[%emt 0:00:49]} 75. Rf6 {[%emt 0:00:03]} Ke5 {[%emt 0:00:50]} 76. Rf5+ {[%emt 0:00:02]} Ke6 {[%emt 0:00:25]} 77. Kg3 {[%emt 0:00:20]} Ra3+ {[%emt 0:00:32]} 78. Rf3 {[%emt 0:00:02]} Ra5 {[%emt 0:00:34]} 79. h4 {[%emt 0:00:14]} Ra1 {[%emt 0:00:35]} 80. Rb3 {[%emt 0:08:09]} Ra6 {[%emt 0:01:14]} 81. h5 {[%emt 0:03:11]} Kf6 {[%emt 0:00:39]} 82. Kh4 {[%emt 0:00:03]} Ra5 {[%emt 0:01:57]} 83. g5+ {[%emt 0:00:39]} Kg7 {[%emt 0:00:48]} 84. Rb7+ {[%emt 0:00:02]} Kh8 {[%emt 0:01:11]} 85. h6 {[%emt 0:00:32]} Ra6 {[%emt 0:01:41]} 86. Kh5 {[%emt 0:00:10]} Ra5 {[%emt 0:01:06]} 87. Re7 {[%emt 0:01:23]} Rb5 {[%emt 0:00:34]} 88. Kg6 {[%emt 0:00:41]} Rb6+ {[%emt 0:00:45]} 89. Kf5 {[%emt 0:00:27]} Rb8 {[%emt 0:01:52]} 90. g6 {[%emt 0:01:14]} Kg8 {[%emt 0:01:13]} 91. Re5 {[%emt 0:00:17]} Ra8 {[%emt 0:00:42]} 92. Kg5 {[%emt 0:00:08]} Kh8 {[%emt 0:00:42]} 93. h7 {[%emt 0:00:32]} 1-0

[Event "SAIF POWERTEC 45th BAN Ch 2019"]
[Site "Dhaka"]
[Date "2019.11.09"]
[Round "8.2"]
[White "Rahman, Taibur"]
[Black "Mohammad Fahad, Rahman"]
[Result "*"]
[ECO "E53"]
[WhiteElo "2196"]
[BlackElo "2247"]
[Annotator "RC"]
[PlyCount "56"]
[EventDate "2019.11.02"]
[EventType "swiss"]
[EventCountry "BAN"]
[SourceTitle "playchess.com"]
[Source "ChessBase"]
[SourceQuality "1"]
[TimeControl "40/5400+30:1800+30"]

1. d4 {[%emt 0:07:13]} Nf6 {[%emt 0:00:08]} 2. c4 {[%emt 0:00:04]} e6 {[%emt 0:00:17]} 3. Nc3 {[%emt 0:00:05]} Bb4 {[%emt 0:01:09]} 4. e3 {[%emt 0:00:05]} O-O {[%emt 0:00:13]} 5. Bd3 {[%emt 0:00:04]} c5 {[%emt 0:00:22]} 6. Nf3 {[%emt 0:00:12]} d5 {[%emt 0:00:30]} 7. cxd5 {[%emt 0:01:44]} exd5 {[%emt 0:00:02]} 8. dxc5 {[%emt 0:00:11]} Bg4 {[%emt 0:00:07]} 9. O-O {[%emt 0:00:25]} Nbd7 {[%emt 0:00:29]} 10. Ne2 {[%emt 0:04:14]} Bxf3 {[%emt 0:05:53]} 11. gxf3 {[%emt 0:00:11]} Ne5 {[%emt 0:01:46]} 12. Nd4 {[%emt 0:04:48]} Bxc5 {[%emt 0:05:42]} 13. Be2 {[%emt 0:15:27]} Qd7 {[%emt 0:09:58]} 14. b3 {[%emt 0:03:11]} Qh3 {[%emt 0:03:01]} 15. Bb2 {[%emt 0:04:00]} Ng6 {[%emt 0:16:37]} 16. Re1 {[%emt 0:42:45]} Bd6 {[%emt 0:51:46]} 17. f4 {[%emt 0:00:17]} Nxf4 {[%emt 0:01:22]} 18. Bf3 {[%emt 0:10:08]} Nd3 {[%emt 0:00:47]} 19. Bg2 {[%emt 0:01:46]} Qxh2+ {[%emt 0:00:39]} 20. Kf1 {[%emt 0:00:04]} Nxe1 {[%emt 0:46:15]} 21. Qxe1 {[%emt 0:00:03]} Ne4 {[%emt 0:01:50]} 22. Rd1 {[%emt 0:00:36]} Rfd8 {[%emt 0:01:05]} 23. Qa5 {[%emt 0:02:21]} Qh4 {[%emt 0:01:31]} 24. Bxe4 {[%emt 0:01:00]} dxe4 {[%emt 0:00:29]} 25. Rc1 {[%emt 0:00:57]} Rac8 {[%emt 0:03:17]} 26. Rxc8 {[%emt 0:00:28]} Rxc8 {[%emt 0:00:05]} 27. Qxa7 {[%emt 0:00:12]} Qh1+ {[%emt 0:00:20]} 28. Ke2 {[%emt 0:01:29]} Qb1 {[%emt 0:00:02]} *

[Event "SAIF POWERTEC 45th BAN Ch 2019"]
[Site "Dhaka"]
[Date "2019.11.09"]
[Round "8.8"]
[White "Md Emdadul, Haque"]
[Black "Abu Sufian, Shakil"]
[Result "1/2-1/2"]
[ECO "D02"]
[WhiteElo "2070"]
[BlackElo "2254"]
[Annotator "RC"]
[PlyCount "97"]
[EventDate "2019.11.02"]
[EventType "swiss"]
[EventCountry "BAN"]
[SourceTitle "playchess.com"]
[Source "ChessBase"]
[SourceQuality "1"]
[TimeControl "40/5400+30:1800+30"]

1. d4 {[%emt 0:00:00]} d5 {[%emt 0:11:07]} 2. Nf3 {[%emt 0:00:00]} Nf6 {[%emt 0:00:02]} 3. Bf4 {[%emt 0:00:27]} c5 {[%emt 0:00:17]} 4. c3 {[%emt 0:00:15]} Qb6 {[%emt 0:01:16]} 5. Qb3 {[%emt 0:01:10]} Nc6 {[%emt 0:01:20]} 6. e3 {[%emt 0:00:54]} c4 {[%emt 0:00:14]} 7. Qc2 {[%emt 0:00:55]} Bf5 {[%emt 0:00:11]} 8. Qc1 {[%emt 0:00:38]} e6 {[%emt 0:00:40]} 9. Nbd2 {[%emt 0:00:41]} Qd8 {[%emt 0:00:53]} 10. Be2 {[%emt 0:01:13]} h6 {[%emt 0:01:21]} 11. h3 {[%emt 0:02:10]} Be7 {[%emt 0:00:26]} 12. Bh2 {[%emt 0:03:28]} O-O {[%emt 0:01:41]} 13. O-O {[%emt 0:02:58]} Bd6 {[%emt 0:01:22]} 14. Bxd6 {[%emt 0:03:20]} Qxd6 {[%emt 0:00:02]} 15. Nh4 {[%emt 0:00:33]} Bh7 {[%emt 0:00:18]} 16. f4 {[%emt 0:00:56]} b5 {[%emt 0:07:16]} 17. Nhf3 {[%emt 0:01:13]} Nd7 {[%emt 0:07:10]} 18. g4 {[%emt 0:00:59]} g5 {[%emt 0:04:00]} 19. Ne5 {[%emt 0:01:32]} Ncxe5 {[%emt 0:01:08]} 20. fxe5 {[%emt 0:01:27]} Qc7 {[%emt 0:02:11]} 21. Qe1 {[%emt 0:05:27]} f6 {[%emt 0:02:50]} 22. exf6 {[%emt 0:01:06]} Nxf6 {[%emt 0:06:54]} 23. Nf3 {[%emt 0:00:58]} Ne4 {[%emt 0:01:45]} 24. Ne5 {[%emt 0:00:56]} Rxf1+ {[%emt 0:00:15]} 25. Bxf1 {[%emt 0:00:15]} Rf8 {[%emt 0:00:26]} 26. Bg2 {[%emt 0:00:19]} Nc5 {[%emt 0:12:06]} 27. Qg3 {[%emt 0:09:54]} Na4 {[%emt 0:09:45]} 28. Rf1 {[%emt 0:00:56]} Rxf1+ {[%emt 0:00:15]} 29. Bxf1 {[%emt 0:00:44]} Kg7 {[%emt 0:02:51]} 30. Qh2 {[%emt 0:04:49]} a5 {[%emt 0:01:26]} 31. a3 {[%emt 0:02:34]} Bg6 {[%emt 0:04:02]} 32. h4 {[%emt 0:02:50]} Nb6 {[%emt 0:07:04]} 33. Be2 {[%emt 0:03:07]} Nc8 {[%emt 0:01:29]} 34. Bd1 {[%emt 0:03:57]} Ne7 {[%emt 0:01:27]} 35. h5 {[%emt 0:04:41]} Be8 {[%emt 0:04:02]} 36. Bc2 {[%emt 0:05:37]} Ng8 {[%emt 0:00:21]} 37. e4 {[%emt 0:07:42]} dxe4 {[%emt 0:02:14]} 38. Bxe4 {[%emt 0:00:33]} Nf6 {[%emt 0:00:05]} 39. Qe2 {[%emt 0:02:31]} b4 {[%emt 0:03:30]} 40. axb4 {[%emt 0:00:00]} axb4 {[%emt 0:00:00]} 41. Bf3 {[%emt 0:07:01]} bxc3 {[%emt 0:08:20]} 42. bxc3 {[%emt 0:00:17]} Nd5 {[%emt 0:01:05]} 43. Bxd5 {[%emt 0:05:32]} exd5 {[%emt 0:00:01]} 44. Kg2 {[%emt 0:01:54]} Qb7 {[%emt 0:01:14]} 45. Qf3 {[%emt 0:09:10]} Qb2+ {[%emt 0:03:16]} 46. Kh3 {[%emt 0:01:04]} Qd2 {[%emt 0:01:09]} 47. Kg3 {[%emt 0:05:59]} Qe1+ {[%emt 0:00:12]} 48. Kh3 {[%emt 0:00:10]} Qd2 {[%emt 0:00:10]} 49. Kg3 {[%emt 0:29:38]} 1/2-1/2

[Event "SAIF POWERTEC 45th BAN Ch 2019"]
[Site "Dhaka"]
[Date "2019.11.09"]
[Round "8.12"]
[White "Zia, Tahsin Tajwar"]
[Black "Md, Sariatullah"]
[Result "1-0"]
[ECO "B00"]
[WhiteElo "2080"]
[BlackElo "2096"]
[Annotator "NA RC"]
[PlyCount "87"]
[EventDate "2019.11.02"]
[EventType "swiss"]
[EventCountry "BAN"]
[SourceTitle "playchess.com"]
[Source "ChessBase"]
[SourceQuality "1"]
[TimeControl "40/5400+30:1800+30"]

{[%evp 28,79,0,-23,32767,-20,0,-35,0,0,0,6,55,25,69,62,65,50,200,209,206,233,268,267,283,262,299,318,495,248,274,246,309,279,278,259,244,254,251,242,225,225,649,447,456,300,658,705,652,32767,32767,1065,29988,301]} 1. d4 {[%emt 1:30:30]} b6 {[%emt 1:30:30]} 2. e4 {[%emt 0:00:30]} Bb7 {[%emt 0:00:30]} 3. Bd3 {[%emt 0:00:30]} e6 {[%emt 0:00:30]} 4. Nd2 {[%emt 0:00:30]} c5 {[%emt 0:00:30]} 5. c3 {[%emt 0:00:30]} g6 {[%emt 0:00:30]} 6. Ne2 {[%emt 0:00:30]} cxd4 {[%emt 0:00:30]} 7. cxd4 {[%emt 0:00:30]} Bg7 {[%emt 0:00:30]} 8. O-O {[%emt 0:00:30]} Ne7 {[%emt 0:00:30]} 9. f4 {[%emt 0:00:30]} O-O {[%emt 0:00:30]} 10. Nf3 {[%emt 0:00:30]} f5 {[%emt 0:00:30]} 11. e5 {[%emt 0:00:30]} Nbc6 {[%emt 0:00:30]} 12. a3 {[%emt 0:00:30]} Rc8 {[%emt 0:00:30]} 13. Nc3 {[%emt 0:00:30]} a6 {[%emt 0:00:30]} 14. Be3 {[%emt 0:00:30]} Na5 {[%emt 0:00:30]} 15. Nd2 {[%emt 0:00:30]} d6 {[%emt 0:00:30]} 16. Qe2 {[%emt 0:00:30]} b5 {[%emt 0:00:30]} 17. Rac1 {[%emt 0:00:30]} Qd7 {[%emt 0:00:30]} 18. b4 {[%emt 0:00:30]} Nac6 {[%emt 0:00:30]} 19. Nf3 {[%emt 0:00:30]} h6 {[%emt 0:00:30]} 20. Rfd1 {[%emt 0:00:30]} Nd8 {[%emt 0:00:30]} 21. a4 {[%emt 0:00:30]} bxa4 {[%emt 0:00:30]} 22. Bxa6 {[%emt 0:00:30]} Rxc3 $2 {[%emt 0:00:30]} (22... Bxa6 $14 23. Qxa6 {[%mdl 64] Double Attack} Nf7) 23. Rxc3 {[%emt 0:00:30]} Nd5 {[%emt 0:00:30]} 24. Ra3 {[%emt 0:00:30]} Nxb4 {[%emt 0:00:30]} 25. Bxb7 {[%emt 0:00:30]} Nxb7 {[%emt 0:00:30]} 26. Rb1 {[%emt 0:00:30]} Nd5 {[%emt 0:00:30]} 27. Qa6 {[%emt 0:00:30]} Rb8 $2 {[%emt 0:00:30]} (27... Nd8 {is a better defense.} 28. Bd2 (28. exd6 Nf7 $18) (28. Qxd6 Qxd6 29. exd6 Nf7 $18) 28... dxe5 29. Nxe5 Bxe5) 28. exd6 {[%emt 0:00:30]} (28. Qa7 $142 Qc8 29. exd6) 28... Bf8 {[%emt 0:00:30]} 29. Bd2 {[%emt 0:00:30]} ({Don't take} 29. Qxa4 $6 Qxa4 30. Rxa4 Nc3 $18) 29... Bxd6 {[%emt 0:00:30]} 30. Rxa4 {[%emt 0:00:30]} Kg7 {[%emt 0:00:30]} 31. Raa1 {[%emt 0:00:30]} Nd8 {[%emt 0:00:30]} 32. Rxb8 {[%emt 0:00:30]} Bxb8 {[%emt 0:00:30]} 33. Ne5 {[%emt 0:00:30]} Bxe5 {[%emt 0:00:30]} 34. fxe5 {[%emt 0:00:30]} Nc7 $2 {[%emt 0:00:30]} (34... Nc6 35. Rb1 Nde7) 35. Qc4 {[%emt 0:00:30]} Nd5 {[%emt 0:00:30]} 36. Qc5 {[%emt 0:00:30]} Nf7 $2 {[%emt 0:00:30]} (36... Nc6 37. Ra6 Nde7) 37. Ra8 {[%emt 0:00:30]} g5 {[%emt 0:00:30]} 38. h3 {[%emt 0:00:30]} Qe7 {[%emt 0:00:30]} 39. Qc8 {[%emt 0:00:30]} h5 {[%emt 0:00:30]} 40. Qg8+ $18 {[%emt 0:00:30]} Kh6 {[%emt 0:00:30]} 41. h4 {[%emt 0:30:30]} f4 {[%emt 0:30:30]} 42. Re8 {[%emt 0:00:30]} Qd7 {[%emt 0:00:30]} 43. Rf8 {[%emt 0:00:30]} Qa7 {[%emt 0:00:30]} 44. Rxf7 {[%emt 0:00:30]} 1-0

[Event "SAIF POWERTEC 45th BAN Ch 2019"]
[Site "Dhaka"]
[Date "2019.11.10"]
[Round "9.5"]
[White "Md., Sharif Hossain"]
[Black "Rahman, Taibur"]
[Result "0-1"]
[ECO "B29"]
[WhiteElo "2148"]
[BlackElo "2196"]
[Annotator "NA"]
[PlyCount "98"]
[EventDate "2019.11.02"]
[EventType "swiss"]
[EventCountry "BAN"]
[SourceTitle "playchess.com"]
[Source "ChessBase"]
[SourceQuality "1"]
[TimeControl "40/5400+30:1800+30"]

{[%evp 25,98,-43,-60,-68,-78,-89,-44,-39,-34,-43,-18,-28,-16,-40,-32,-28,-35,-90,-93,-92,-85,-96,-64,-85,-92,-100,-85,-264,-133,-198,-190,-197,-107,-190,-93,-149,-104,-121,-92,-109,-103,-133,-107,-122,-78,-80,-55,-121,-94,-96,-145,-399,-501,-935,-1012,-1254,-714,-665,-668,-1196,-833,-1425,-1831,32767,32767,-1702,-2347,-5727,-6395,-29966,-5964,-29994,-29994,-29998,-29999]} 1. e4 {[%emt 1:30:30]} c5 {[%emt 0:00:00]} 2. Nf3 {[%emt 0:00:00]} Nf6 {[%emt 0:00:02]} 3. Nc3 {[%emt 0:00:00]} d5 {[%emt 0:00:28]} 4. exd5 {[%emt 0:00:00]} Nxd5 {[%emt 0:00:06]} 5. Bb5+ {[%emt 0:00:00]} Bd7 {[%emt 0:00:35]} 6. Bc4 {[%emt 0:00:00] B29: Sicilian: 2 Nf3 Nf6 (Nimzowitsch Variation)} (6. Ne5 Bxb5 7. Qf3 f6 8. Nxb5 Na6 9. Qh5+ g6 10. Nxg6 hxg6 11. Qxh8 Qd7 12. Nc3 Nab4 13. O-O Nxc2 14. Rb1 {½-½ (54) Caruana,F (2816)-Mamedyarov,S (2808) Leuven 2018}) 6... Nf6 {[%emt 0:07:05]} 7. Ne5 {[%emt 0:00:00]} e6 {[%emt 0:00:19]} 8. O-O {[%emt 0:00:00]} Be7 {[%emt 0:01:12]} 9. f4 {[%emt 0:00:00]} Nc6 {[%emt 0:03:49]} 10. d3 {[%emt 0:00:00]} O-O $146 {[%emt 0:00:47]} ({Predecessor:} 10... a6 11. a4 Qc7 12. Nxd7 Qxd7 13. g4 O-O 14. Rf2 Nd5 15. Bd2 Nb6 16. Ba2 Nb4 17. a5 {0-1 (17) Somlai,L (2385)-Young,R (2300) New York 1993}) 11. Qf3 {[%emt 0:00:00]} a6 {[%emt 0:22:30]} 12. a4 {[%emt 0:00:00]} Qc7 {[%emt 0:04:01]} 13. Re1 {[%emt 0:00:00]} Nd4 {[%emt 0:04:24]} 14. Qd1 {[%emt 0:00:00]} b5 {[%emt 0:03:01]} 15. Ba2 {[%emt 0:00:00]} Bc6 {[%emt 0:02:01]} ({Don't play} 15... bxa4 16. Nxd7 Nxd7 17. Nxa4 $11) 16. Nxc6 {[%emt 0:00:00]} Qxc6 {[%emt 0:00:15]} 17. Ne4 {[%emt 0:00:00]} Rad8 {[%emt 0:02:42]} 18. c3 {[%emt 0:00:00]} Nf5 $1 {[%emt 0:07:49]} 19. Qf3 {[%emt 0:00:00]} Qd7 {[%emt 0:04:34]} 20. axb5 {[%emt 0:00:00]} axb5 {[%emt 0:00:09]} 21. Nxf6+ {[%emt 0:00:00]} Bxf6 {[%emt 0:00:22]} 22. Bb1 {[%emt 0:00:00]} b4 {[%emt 0:01:35]} 23. Bd2 {[%emt 0:00:00]} Ne7 {[%emt 0:03:01]} 24. Qe4 {[%emt 0:00:00]} bxc3 {[%emt 0:12:20]} 25. bxc3 {[%emt 0:00:00]} g6 {[%emt 0:02:10]} 26. Ra4 $2 {[%emt 0:00:00] [#]} (26. Qa4 $17) 26... Nd5 {[%emt 0:02:48]} (26... Bd4+ $1 $19 {[%mdl 512]} 27. cxd4 Qxa4 28. dxc5 Qxe4 29. Rxe4 Rb8) 27. Rc4 {[%emt 0:00:00]} (27. Rc1 $17 {was called for.}) 27... Qb5 {[%emt 0:01:01]} 28. Qe2 {[%emt 0:00:00] [#]} Rc8 {[%emt 0:02:33]} (28... Ra8 $1 $19 {is more deadly.} 29. d4 Ra1) 29. Rc1 {[%emt 0:14:00] [#]} (29. d4 $17 {was called for.}) 29... Rfd8 {[%emt 0:02:26]} ({Black should try} 29... Ra8 $1 $19 30. Bc2 Ra2) 30. Qd1 {[%emt 0:00:00]} Rb8 {[%emt 0:03:54]} 31. Bc2 {[%emt 0:00:00]} Qa5 {[%emt 0:01:45]} 32. Ra1 {[%emt 0:00:00]} Qb6 {[%emt 0:01:48]} 33. Kh1 {[%emt 0:00:00]} Qd6 {[%emt 0:00:10]} 34. Qc1 {[%emt 0:00:00]} Rb7 {[%emt 0:00:43]} 35. Ra5 {[%emt 0:00:00]} Rc8 {[%emt 0:00:19]} 36. Qa3 {[%emt 0:00:00]} ({White should play} 36. d4 $15) 36... Rbc7 {[%emt 0:00:18]} 37. g3 {[%emt 0:00:00]} h5 {[%emt 0:05:28]} 38. d4 $2 {[%emt 0:00:00] [#]} (38. Qb3 $17 {is a better defense.}) 38... Ne3 $1 {[%emt 0:01:19] Double Attack} 39. Rcxc5 {[%emt 0:05:19]} (39. Bxe3 $142 Qd5+ {[%mdl 64] Double Attack} 40. Kg1 Qxc4 41. dxc5) 39... Nxc2 {[%emt 0:04:24]} 40. Rxc7 {[%emt 0:00:00]} Nxa3 {[%emt 0:00:00]} 41. Rxc8+ {[%emt 0:04:56]} Kg7 {[%emt 0:00:51]} 42. Be3 {[%emt 0:01:18]} Qb6 {[%emt 0:01:21]} 43. Raa8 {[%emt 0:00:58]} Qb1+ {[%emt 0:02:09]} 44. Kg2 {[%emt 0:00:08]} Qe4+ {[%emt 0:32:11]} 45. Kf2 {[%emt 0:00:21]} Nc2 {[%emt 0:00:06]} 46. Bd2 {[%emt 0:01:20]} Qd3 {[%emt 0:00:53]} 47. Bc1 {[%emt 0:00:11]} Qd1 {[%emt 0:01:53]} 48. Ba3 {[%emt 0:01:17]} Qe1+ {[%emt 0:31:11]} 49. Kf3 {[%emt 0:01:44]} Qf1+ {[%emt 0:00:18]} 0-1

[Event "SAIF POWERTEC 45th BAN Ch 2019"]
[Site "Dhaka"]
[Date "2019.11.10"]
[Round "9.9"]
[White "Chatterjee, Debaraj"]
[Black "Zia, Tahsin Tajwar"]
[Result "0-1"]
[ECO "E08"]
[WhiteElo "2250"]
[BlackElo "2080"]
[Annotator "NA"]
[PlyCount "40"]
[EventDate "2019.11.02"]
[EventType "swiss"]
[EventCountry "BAN"]
[SourceTitle "playchess.com"]
[Source "ChessBase"]
[SourceQuality "1"]
[TimeControl "40/5400+30:1800+30"]

{[%evp 17,40,28,21,17,25,23,24,12,19,14,31,-36,-34,-35,11,11,11,10,13,22,27,11,12,-8,0]} 1. d4 {[%emt 0:01:04]} d5 {[%emt 0:00:00]} 2. c4 {[%emt 0:00:23]} e6 {[%emt 0:00:00]} 3. Nf3 {[%emt 0:00:09]} Nf6 {[%emt 0:00:00]} 4. g3 {[%emt 0:00:10]} Bb4+ {[%emt 0:00:00]} 5. Bd2 {[%emt 0:00:54]} Be7 {[%emt 0:00:00]} 6. Bg2 {[%emt 0:00:12]} O-O {[%emt 0:00:00]} 7. O-O {[%emt 0:00:08]} Nbd7 {[%emt 0:00:00]} 8. Qc2 {[%emt 0:00:35]} Ne4 {[%emt 0:00:05]} 9. Bf4 {[%emt 0:00:40]} c6 {[%emt 0:00:04]} 10. h4 {[%emt 0:00:15] E08: Closed Catalan: Main Line: 7 Qc2} Ndf6 {[%emt 0:00:06]} 11. Nbd2 {[%emt 0:05:31]} Nxd2 {[%emt 0:01:16]} 12. Nxd2 {[%emt 0:02:13] White has an edge.} (12. Bxd2 {seems wilder.} b6 13. Ne5 Bb7 14. b4 Nd7 15. Nxd7 Qxd7 16. c5) 12... Nh5 {[%emt 0:00:09]} 13. e3 $146 {[%emt 0:15:25]} ({Predecessor:} 13. Be3 f5 14. Bf3 Qe8 15. Bg5 Nf6 16. e3 b6 17. Rac1 Ba6 {½-½ (43) Meier,G (2648)-Carlsen,M (2843) Karlsruhe/Baden-Baden 2018}) 13... h6 {[%emt 0:08:47]} 14. Bf3 {[%emt 0:02:13]} (14. Nf3 $14) 14... Nxf4 $15 {[%emt 0:00:14]} 15. exf4 {[%emt 1:07:38]} dxc4 {[%emt 0:02:11]} 16. Qxc4 {[%emt 0:00:30]} Bf6 {[%emt 1:25:08]} 17. Nb3 $1 {[%emt 0:00:00]} a5 {With the idea ...a4.} 18. Rfd1 {[%emt 0:01:00]} Qb6 {[%emt 0:01:00]} 19. Nc5 {[%emt 0:00:30]} Rd8 {[%emt 0:00:30]} ({Don't go for} 19... Qxb2 $2 20. Rab1 $16) 20. Rd2 {[%emt 0:00:00]} Qb4 {[%emt 0:00:00] Accuracy: White = 47%, Black = 71%.} 0-1

[Event "SAIF POWERTEC 45th BAN Ch 2019"]
[Site "Dhaka"]
[Date "2019.11.10"]
[Round "9.10"]
[White "Mohammed Abdul, Malek"]
[Black "Md Emdadul, Haque"]
[Result "*"]
[ECO "D06"]
[WhiteElo "2196"]
[BlackElo "2070"]
[Annotator "RC"]
[PlyCount "65"]
[EventDate "2019.11.02"]
[EventType "swiss"]
[EventCountry "BAN"]
[SourceTitle "playchess.com"]
[Source "ChessBase"]
[SourceQuality "1"]
[TimeControl "40/5400+30:1800+30"]

1. d4 {[%emt 0:00:00]} Nf6 {[%emt 0:00:00]} 2. c4 {[%emt 0:00:00]} d5 {[%emt 0:00:20]} 3. cxd5 {[%emt 0:01:05]} Nxd5 {[%emt 0:00:54]} 4. e4 {[%emt 0:00:02]} Nb6 {[%emt 0:00:21]} 5. Nc3 {[%emt 0:00:21]} e6 {[%emt 0:01:03]} 6. Be3 {[%emt 0:00:17]} N8d7 {[%emt 0:00:53]} 7. Nf3 {[%emt 0:00:28]} Nf6 {[%emt 0:01:10]} 8. h3 {[%emt 0:00:19]} Bd7 {[%emt 0:01:34]} 9. Rc1 {[%emt 0:01:44]} Bb4 {[%emt 0:00:45]} 10. Bd3 {[%emt 0:00:18]} h6 {[%emt 0:03:25]} 11. O-O {[%emt 0:00:06]} c6 {[%emt 0:01:28]} 12. Ne5 {[%emt 0:01:21]} Be7 {[%emt 0:03:50]} 13. f4 {[%emt 0:00:49]} g6 {[%emt 0:02:03]} 14. a4 {[%emt 0:01:35]} h5 {[%emt 0:00:45]} 15. a5 {[%emt 0:00:27]} Nc8 {[%emt 0:00:06]} 16. a6 {[%emt 0:00:34]} bxa6 {[%emt 0:03:05]} 17. Na4 {[%emt 0:01:06]} O-O {[%emt 0:02:48]} 18. Nc5 {[%emt 0:01:36]} Bxc5 {[%emt 0:01:00]} 19. Rxc5 {[%emt 0:00:04]} Qb6 {[%emt 0:01:47]} 20. f5 {[%emt 0:00:30]} exf5 {[%emt 0:01:04]} 21. Bg5 {[%emt 0:01:11]} Qxb2 {[%emt 0:01:05]} 22. Bb1 {[%emt 0:00:36]} fxe4 {[%emt 0:05:39]} 23. Bxf6 {[%emt 0:00:50]} Be6 {[%emt 0:01:05]} 24. d5 {[%emt 0:03:42]} Bxh3 {[%emt 0:09:53]} 25. gxh3 {[%emt 0:02:55]} Qa3 {[%emt 0:00:08]} 26. Rc2 {[%emt 0:03:35]} Qe3+ {[%emt 0:02:10]} 27. Kh2 {[%emt 0:01:10]} cxd5 {[%emt 0:00:24]} 28. Rg2 {[%emt 0:00:35]} Kh7 {[%emt 0:02:27]} 29. Rf5 {[%emt 0:03:11]} Qh6 {[%emt 0:02:32]} 30. Nxf7 {[%emt 1:14:33]} Rxf7 {[%emt 0:02:33]} 31. Qxd5 {[%emt 0:01:13]} Rf8 {[%emt 0:07:11]} 32. Qd7+ {[%emt 0:00:56]} Kg8 {[%emt 0:01:11]} 33. Ba2+ {[%emt 1:05:16]} *